bitfinex-derivatives/quotes_ETHF0:USTF0_20240905
["timestamp","ask_amount","ask_price","bid_price","bid_amount"]
[1725566177966,2.0514307,2363.2,2363.1,3.2078]
[1725566178269,2.0514307,2363.2,2363.0,4.4]
[1725566178681,1.6282207,2363.3,2363.0,4.4]
[1725566178968,1.6282207,2363.7,2363.2,4.4]
[1725566179273,1.6282207,2363.7,2363.3,4.82319]
[1725566179274,0.42312,2363.7,2363.3,4.82319]
[1725566179462,0.42312,2363.7,2363.3,4.4]
[1725566179783,2.0513407,2363.7,2363.3,4.4]
[1725566180380,2.0513407,2363.7,2363.3,4.82319]
[1725566180577,1.6282207,2363.8,2363.3,4.82319]
[1725566180766,0.42313,2363.7,2363.5,3.2078]
[1725566181073,0.42317,2363.5,2363.3,4.4]
[1725566181575,0.42315,2363.6,2363.3,4.82319]
[1725566182271,0.42315,2363.6,2363.3,4.4]
[1725566182467,0.42315,2363.6,2363.3,4.82319]
[1725566182663,2.6860707,2363.7,2363.2,3.2078]
[1725566182868,3.22756621,2363.9,2363.2,3.2078]
[1725566182869,0.4232,2363.3,2363.2,3.2078]
[1725566183069,3.5057707,2363.5,2363.1,4.4]
[1725566183278,0.42321,2363.3,2363.1,4.4]
[1725566183570,0.818,2363.4,2363.1,4.4]
[1725566183571,0.42321,2363.2,2363.1,4.4]
[1725566183777,0.4232,2363.3,2363.1,4.4]
[1725566183975,0.818,2363.4,2363.2,0.4232]
[1725566184274,0.4232,2363.3,2363.1,4.4]
[1725566184782,0.818,2363.4,2362.9,3.2141488]
[1725566184969,0.42321,2363.3,2363.0,0.42325]
[1725566185275,0.42321,2363.3,2363.1,0.42323]
[1725566185479,0.818,2363.4,2363.1,4.4]
[1725566185774,0.42321,2363.2,2363.1,4.4]
[1725566186273,0.42321,2363.3,2363.1,4.4]
[1725566186481,0.42321,2363.2,2363.1,4.4]
[1725566186671,1.058,2363.3,2362.9,3.2141488]
[1725566187174,0.42324,2363.1,2362.9,3.2141488]
[1725566187382,0.42325,2363.0,2362.9,3.2141488]
[1725566188381,0.42325,2363.0,2362.9,0.0063488]
[1725566188774,5.71338,2363.0,2362.9,0.0063488]
[1725566189185,7.30518,2363.0,2362.9,0.0063488]
[1725566189382,8.9334007,2363.0,2362.9,0.0063488]
[1725566189681,7.30518,2363.0,2362.9,0.0063488]
[1725566189987,14.9334007,2363.0,2362.9,0.0063488]
[1725566190183,8.9334007,2363.0,2362.9,0.0063488]
[1725566190573,1.05818,2362.9,2362.5,4.82332]
[1725566190786,0.42331,2362.7,2362.5,4.82333]
[1725566191180,0.42331,2362.7,2362.5,4.82332]
[1725566191581,0.8230488,2362.8,2362.6,0.42332]
[1725566191792,1.2463388,2362.8,2362.6,0.42332]
[1725566192584,0.0063488,2362.8,2362.7,0.4233]
[1725566193294,0.0063488,2362.8,2362.7,3.6311]
[1725566195494,0.0063488,2362.8,2362.7,8.92137]
[1725566195689,6.09509,2363.4,2362.8,1.05822]
[1725566195992,6.09509,2363.4,2363.2,4.82321]
[1725566195993,1.99909,2363.4,2363.2,4.82321]
[1725566196191,0.4232,2363.3,2363.2,4.4]
[1725566196490,1.5759,2363.4,2363.3,0.4232]
[1725566196693,1.99908,2363.4,2363.2,4.82321]
[1725566196892,0.42323,2363.2,2362.9,4.82326]
[1725566197093,0.42323,2363.2,2363.0,0.42325]
[1725566197290,4.7837,2363.4,2362.8,3.2078]
[1725566197492,0.42324,2363.1,2362.8,3.63108]
[1725566197794,0.42326,2363.0,2362.7,0.42329]
[1725566198090,0.42327,2362.9,2362.7,0.4233]
[1725566198294,0.42327,2362.9,2362.6,4.4]
[1725566198295,0.42327,2362.9,2362.6,4.82331]
[1725566198685,0.8157,2362.8,2362.6,4.4]
[1725566198885,0.8157,2362.8,2362.6,4.82331]
[1725566199094,1.23899,2362.8,2362.6,4.82331]
[1725566199401,0.8157,2362.8,2362.6,4.82331]
[1725566199584,0.8157,2362.8,2362.6,4.4]
[1725566199891,0.8157,2362.8,2362.7,0.4233]
[1725566200093,0.8157,2362.8,2362.7,3.6311]
[1725566201096,0.8157,2362.8,2362.7,3.2078]
[1725566201287,0.8157,2362.8,2362.7,3.6311]
[1725566202302,0.8157,2362.8,2362.7,3.2078]
[1725566202698,0.8157,2362.8,2362.7,3.6311]
[1725566203192,1.23899,2362.8,2362.7,3.2078]
[1725566203493,0.8157,2362.8,2362.7,3.6311]
[1725566203696,1.23899,2362.8,2362.7,3.2078]
[1725566204788,1.48169,2362.5,2362.4,0.0063488]
[1725566205993,7.33644136,2362.5,2362.4,0.0063488]
[1725566206792,6.27809136,2362.5,2362.4,0.0063488]
[1725566206992,4.65614,2362.5,2362.4,0.0063488]
[1725566207398,6.27809136,2362.5,2362.4,0.0063488]
[1725566207900,4.65614,2362.5,2362.4,0.0063488]
[1725566208790,7.33644136,2362.5,2362.4,0.0063488]
[1725566208990,0.42341,2362.2,2362.0,7.6078]
[1725566209190,3.50213741,2362.4,2362.0,7.6078]
[1725566209394,0.4234,2362.2,2362.0,8.03121]
[1725566210395,0.4297388,2362.3,2362.1,0.42341]
[1725566210800,0.0063488,2362.3,2362.2,0.42339]
[1725566210997,0.0063488,2362.3,2362.2,4.82339]
[1725566211395,0.0063488,2362.3,2362.2,4.4]
[1725566211798,0.0063488,2362.3,2362.2,4.82339]
[1725566212602,0.0063488,2362.3,2362.2,9.05699]
[1725566213197,0.0063488,2362.3,2362.2,15.05699]
[1725566213397,0.0063488,2362.3,2362.2,9.05699]
[1725566215192,0.0063488,2362.3,2362.2,9.82049]
[1725566216200,0.0063488,2362.3,2362.2,4.4]
[1725566216403,0.0063488,2362.3,2362.0,8.03122]
[1725566216600,0.0063488,2362.3,2362.1,0.4234]
[1725566216801,1.62784621,2362.3,2362.1,0.4234]
[1725566217212,1.62784621,2362.3,2362.0,7.6078]
[1725566217403,2.04490741,2362.1,2362.0,4.4]
[1725566217709,0.42343,2362.0,2361.9,0.0063488]
[1725566218099,2.16640677,2362.0,2361.9,0.0063488]
[1725566218906,2.58983677,2362.0,2361.9,0.0063488]
[1725566219104,6.82343677,2362.0,2361.9,0.0063488]
[1725566220204,6.40000677,2362.0,2361.9,0.0063488]
[1725566220405,6.82343677,2362.0,2361.9,0.0063488]
[1725566220605,2.58983677,2362.0,2361.9,0.0063488]
[1725566221001,4.65703,2362.0,2361.9,0.0063488]
[1725566221207,6.82291763,2362.0,2361.9,0.0063488]
[1725566221411,1.62459971,2362.0,2361.9,0.4297988]
[1725566221601,1.62459971,2362.0,2361.9,0.0063488]
[1725566222009,2.16588763,2362.1,2361.9,0.0063488]
[1725566222313,2.58931763,2362.0,2361.9,0.0063488]
[1725566222509,1.62383165,2362.0,2361.9,0.0063488]
[1725566222716,1.62383114,2362.0,2361.9,0.0063488]
[1725566222920,2.04726114,2362.0,2361.9,0.0063488]
[1725566223111,6.82291763,2362.0,2361.9,0.0063488]
[1725566223505,6.82291763,2362.0,2361.4,4.146]
[1725566223506,7.45806763,2362.0,2361.5,4.4]
[1725566223711,0.4235,2361.6,2361.5,4.4]
[1725566223905,1.62305798,2361.7,2361.5,4.4]
[1725566223906,2.04655798,2361.7,2361.5,4.4]
[1725566224210,2.04655798,2361.7,2361.5,4.82352]
[1725566224410,0.4235,2361.7,2361.5,4.4]
[1725566224608,2.04653798,2361.8,2361.6,0.4235]
[1725566224807,1.62305798,2361.8,2361.5,4.4]
[1725566225014,2.71286363,2362.1,2361.5,4.4]
[1725566225015,1.62305798,2362.1,2361.9,0.42345]
[1725566225217,1.62305798,2362.1,2362.0,0.42343]
[1725566225413,1.62305798,2362.1,2361.7,7.6078]
[1725566225414,1.62305798,2362.1,2361.9,0.42343]
[1725566225615,1.62305798,2362.1,2362.0,3.63123]
[1725566225816,2.42585798,2362.2,2362.0,3.63123]
[1725566226215,1.62305798,2362.1,2362.0,3.2078]
[1725566226410,2.42585798,2362.2,2362.0,3.2078]
[1725566226910,2.42585798,2362.2,2362.1,0.42341]
[1725566227515,2.45330678,2362.3,2362.1,0.42341]
[1725566227820,2.45330678,2362.3,2362.0,8.03122]
[1725566227821,2.87668678,2362.3,2362.0,8.03122]
[1725566228214,2.45330678,2362.3,2362.1,0.42341]
[1725566228719,2.45330678,2362.3,2362.2,0.42339]
[1725566228915,1.62940678,2362.3,2362.1,0.4234]
[1725566230218,1.62940678,2362.3,2362.2,0.42339]
[1725566230622,1.62940678,2362.3,2362.2,4.65699]
[1725566230813,0.0063488,2362.3,2362.2,4.65699]
[1725566231121,0.0063488,2362.3,2362.0,8.66636]
[1725566231122,0.0063488,2362.3,2362.0,7.6078]
[1725566231315,1.62940678,2362.3,2362.1,0.4234]
[1725566231616,2.04645798,2362.2,2362.0,7.6078]
[1725566231812,0.42341,2362.1,2362.0,3.2078]
[1725566232017,1.62474771,2362.1,2362.0,3.2078]
[1725566232216,2.39854771,2362.2,2362.1,0.42341]
[1725566232410,1.62474771,2362.2,2362.0,8.03122]
[1725566232613,1.62474771,2362.2,2362.0,7.6078]
[1725566232816,1.62474771,2362.2,2362.0,8.03122]
[1725566233022,1.62474771,2362.2,2362.1,0.42341]
[1725566233322,1.62474771,2362.2,2362.0,7.6078]
[1725566233519,1.62474771,2362.1,2362.0,8.03123]
[1725566233716,2.04814771,2362.2,2362.0,7.6078]
[1725566233920,2.58929763,2362.1,2362.0,3.2078]
[1725566234121,0.42341,2362.1,2362.0,3.2078]
[1725566234519,2.16588763,2362.1,2362.0,3.2078]
[1725566234826,1.62530795,2362.1,2362.0,7.6078]
[1725566235526,1.62530795,2362.2,2362.1,0.42341]
[1725566235728,0.0063488,2362.3,2362.2,0.42339]
[1725566235920,0.0063488,2362.3,2362.2,9.05699]
[1725566236119,0.0063488,2362.3,2362.2,16.92718]
[1725566236613,0.0339,2362.5,2362.4,0.42336]
[1725566236818,2.40560795,2363.0,2362.9,0.42327]
[1725566237022,2.16588763,2363.2,2362.9,3.2078]
[1725566237023,1.62530795,2363.1,2362.9,3.2078]
[1725566237419,1.62530795,2363.1,2362.9,3.63107]
[1725566237620,2.94618763,2363.2,2363.1,0.42323]
[1725566237621,1.62530795,2363.2,2363.1,0.42323]
[1725566237823,0.0063488,2363.2,2363.1,4.65523]
[1725566238126,0.0063488,2363.2,2363.1,10.65523]
[1725566238322,0.0063488,2363.2,2363.1,11.42573]
[1725566238913,0.0063488,2363.2,2363.1,12.05883]
[1725566242320,1.62530795,2363.9,2363.1,11.6356]
[1725566242523,1.62530795,2364.0,2363.7,3.2078]
[1725566243519,2.04836795,2364.1,2363.7,3.2078]
[1725566243724,1.62530795,2364.0,2363.7,3.2078]
[1725566243925,1.62530795,2364.1,2363.7,3.63092]
[1725566244129,1.62530795,2364.1,2363.7,3.2078]
[1725566244330,1.62530795,2364.1,2363.7,3.63092]
[1725566244631,0.42306,2364.1,2363.7,3.2078]
[1725566244826,3.60344795,2364.2,2363.7,3.63092]
[1725566245226,1.5551,2364.2,2363.8,0.4231]
[1725566245534,1.5551,2364.2,2364.0,4.4]
[1725566246424,0.42311,2363.8,2363.7,4.4]
[1725566246832,0.42313,2363.7,2363.4,7.6078]
[1725566247024,0.8105,2363.6,2363.4,7.6078]
[1725566247535,1.22566,2363.5,2363.4,4.4]
[1725566247719,0.42318,2363.4,2363.1,4.4]
[1725566248123,1.22567,2363.5,2363.1,4.4]
[1725566248723,0.42322,2363.2,2363.0,3.2078]
[1725566249221,0.42323,2363.2,2363.0,3.2078]
[1725566250236,1.22568,2363.5,2363.1,4.4]
[1725566250426,0.42318,2363.4,2363.1,4.4]
[1725566250729,0.4232,2363.3,2363.1,4.4]
[1725566251120,0.8025,2363.5,2363.1,4.4]
[1725566251328,0.42318,2363.4,2363.1,4.4]
[1725566253028,0.42321,2363.2,2363.1,4.4]
[1725566253624,0.42323,2363.1,2363.0,3.2078]
[1725566253836,0.42322,2363.2,2363.0,3.2078]
[1725566254333,0.42323,2363.1,2363.0,3.2078]
[1725566254731,0.42323,2363.2,2363.0,3.2078]
[1725566255133,0.7697,2363.4,2363.0,3.2078]
[1725566255134,0.42321,2363.3,2363.0,3.2078]
[1725566255837,0.42321,2363.2,2363.0,3.2078]
[1725566256128,0.8025,2363.5,2363.1,4.4]
[1725566256440,0.42321,2363.2,2363.1,4.4]
[1725566256740,0.4232,2363.3,2363.1,4.4]
[1725566257337,0.42318,2363.4,2363.1,4.82322]
[1725566257538,0.8025,2363.5,2363.2,0.4232]
[1725566257835,0.8025,2363.5,2363.4,3.2078]
[1725566259633,0.8025,2363.5,2363.1,8.3813]
[1725566259828,0.8025,2363.5,2363.1,7.6078]
[1725566260238,0.8025,2363.5,2363.1,3.2078]
[1725566260428,0.8025,2363.5,2363.0,0.42324]
[1725566260429,0.4232,2363.3,2363.0,0.42324]
[1725566261438,0.8025,2363.5,2363.1,4.82322]
[1725566261634,0.8025,2363.5,2363.1,4.4]
[1725566261837,0.4232,2363.3,2363.1,4.4]
[1725566262134,0.42321,2363.2,2363.1,4.4]
[1725566262333,1.86042,2363.5,2363.1,4.4]
[1725566262334,0.4232,2363.3,2363.1,4.4]
[1725566263335,0.42321,2363.2,2363.1,4.4]
[1725566263643,0.42321,2363.3,2363.1,4.4]
[1725566263936,0.42321,2363.3,2363.2,3.29]
[1725566265238,0.0339,2363.4,2363.2,3.29]
[1725566265442,0.0339,2363.4,2363.3,0.4232]
[1725566265938,0.0339,2363.4,2363.3,4.6544]
[1725566266641,0.0339,2363.4,2363.2,3.29]
[1725566266642,0.0339,2363.4,2363.1,3.2078]
[1725566266940,0.0339,2363.4,2363.2,3.29]
[1725566267536,0.45709,2363.4,2363.2,3.29]
[1725566268145,0.4571,2363.4,2363.2,3.29]
[1725566268442,0.0339,2363.4,2363.1,3.2078]
[1725566268637,0.42327,2362.9,2362.8,10.6501488]
[1725566268837,0.42327,2362.9,2362.8,6.5041488]
[1725566269037,0.42326,2363.0,2362.8,6.5041488]
[1725566269338,1.27066,2363.0,2362.8,6.5041488]
[1725566270444,0.8474,2363.0,2362.8,6.5041488]
[1725566270739,2.44780795,2363.3,2363.0,0.42323]
[1725566271043,0.8225,2363.3,2363.2,3.29]
[1725566272543,0.8813,2363.4,2363.2,3.29]
[1725566272943,1.30448,2363.4,2363.2,3.29]
[1725566273340,0.8813,2363.4,2363.2,3.29]
[1725566273841,2.92979795,2363.4,2363.2,3.29]
[1725566274043,0.4232,2363.3,2363.2,3.29]
[1725566274242,2.92979795,2363.4,2363.2,3.29]
[1725566274857,2.16588763,2363.5,2363.3,4.2312]
[1725566275036,1.62568259,2364.0,2363.4,7.55575]
[1725566275241,1.62568259,2364.1,2363.9,3.71308]
[1725566275448,2.42408259,2364.2,2363.9,6.92088]
[1725566275750,2.04874259,2364.1,2363.9,6.4978]
[1725566275946,1.62568259,2364.1,2363.9,6.4978]
[1725566276147,1.62568259,2364.1,2363.9,6.92088]
[1725566276447,1.62568259,2364.1,2364.0,0.42307]
[1725566276747,1.62568259,2364.4,2364.3,0.42302]
[1725566276948,2.42408259,2364.5,2364.3,0.42302]
[1725566277148,2.42408259,2364.5,2364.2,6.4978]
[1725566277149,1.62568259,2364.4,2364.2,6.4978]
[1725566277649,2.42408259,2364.5,2364.2,6.92083]
[1725566277850,2.84707259,2364.5,2364.3,0.42302]
[1725566278055,1.62568259,2364.7,2364.2,8.65537]
[1725566278244,1.62568259,2364.7,2364.6,0.42296]
[1725566278445,2.04861259,2364.8,2364.6,0.42296]
[1725566279153,1.62568259,2364.8,2364.5,7.5978]
[1725566279348,3.2248808,2364.7,2364.3,0.42301]
[1725566279645,2.04949087,2364.5,2364.3,0.42301]
[1725566279850,2.04948087,2364.6,2364.4,0.423]
[1725566280049,2.04948087,2364.6,2364.3,0.42301]
[1725566280346,1.62651087,2364.5,2364.4,0.423]
[1725566280551,1.62651087,2364.5,2364.3,0.42302]
[1725566280746,1.62651087,2364.5,2364.2,7.5978]
[1725566281049,0.42303,2364.2,2364.1,0.0063488]
[1725566281250,1.62716317,2364.2,2364.1,0.0063488]
[1725566281445,2.05019317,2364.2,2364.1,0.0063488]
[1725566281950,1.62716317,2364.2,2364.1,0.4293988]
[1725566282146,2.05019317,2364.2,2364.1,0.0063488]
[1725566282344,1.62716317,2364.2,2364.1,0.0063488]
[1725566282550,1.62783392,2364.2,2364.1,0.0063488]
[1725566282848,1.62783392,2364.2,2364.1,0.4293988]
[1725566282849,1.62781913,2364.2,2364.1,0.4293988]
[1725566283251,1.62781913,2364.2,2364.1,0.0063488]
[1725566283252,2.05084913,2364.2,2364.1,0.0063488]
[1725566283450,0.42303,2364.2,2364.1,0.0063488]
[1725566283658,6.28033278,2364.2,2364.1,0.0063488]
[1725566283847,1.05768,2364.0,2363.7,4.39]
[1725566284045,0.42311,2363.8,2363.7,4.39]
[1725566284352,2.6852773,2363.8,2363.5,4.39]
[1725566284553,1.6275073,2363.7,2363.5,4.39]
[1725566284746,2.0506373,2363.7,2363.5,4.39]
[1725566284946,2.0506473,2363.6,2363.5,4.39]
[1725566285151,1.6275073,2363.6,2363.5,4.39]
[1725566285346,1.6275073,2363.7,2363.5,4.81315]
[1725566285755,1.6275073,2363.7,2363.5,4.39]
[1725566285959,1.6275073,2363.7,2363.6,0.42314]
[1725566286153,1.6338561,2363.8,2363.6,0.42314]
[1725566286455,0.0063488,2363.8,2363.7,4.81312]
[1725566286658,0.0063488,2363.8,2363.7,9.04352]
[1725566287859,0.0063488,2363.8,2363.7,4.81312]
[1725566288054,0.0063488,2363.8,2363.7,9.04352]
[1725566288254,0.0063488,2363.8,2363.7,4.81312]
[1725566288454,0.0063488,2363.8,2363.7,4.39]
[1725566288858,0.4294588,2363.8,2363.7,4.39]
[1725566289049,0.42312,2363.7,2363.5,4.39]
[1725566289251,0.8463,2363.6,2363.5,4.39]
[1725566289657,0.8463,2363.6,2363.5,4.81316]
[1725566290562,0.8463,2363.6,2363.5,9.04436]
[1725566290951,1.6338561,2363.8,2363.6,0.42313]
[1725566291158,2.4436561,2363.8,2363.7,4.81312]
[1725566291352,2.4436561,2363.8,2363.7,4.39]
[1725566291353,0.8161488,2363.8,2363.7,4.39]
[1725566291561,2.4436561,2363.8,2363.7,4.81312]
[1725566292059,0.8161488,2363.8,2363.7,4.81312]
[1725566293066,0.0063488,2363.8,2363.7,4.81312]
[1725566293366,2.0569661,2363.8,2363.7,4.39]
[1725566294363,1.6338561,2363.8,2363.7,4.39]
[1725566294861,2.0569661,2363.8,2363.7,4.39]
[1725566295559,2.0569661,2363.8,2363.6,3.2078]
[1725566295560,0.42312,2363.7,2363.6,3.2078]
[1725566295755,0.42316,2363.5,2363.4,4.3963488]
[1725566296061,4.82592974,2363.7,2363.4,4.3963488]
[1725566296062,1.62857218,2363.6,2363.4,4.3963488]
[1725566296252,0.8391,2363.5,2363.4,4.3963488]
[1725566296453,0.8391,2363.5,2363.4,4.8195288]
[1725566298052,0.8391,2363.5,2363.4,3.7195288]
[1725566298956,2.89083218,2363.5,2363.4,3.2963488]
[1725566299557,1.26226,2363.5,2363.4,3.2963488]
[1725566299871,2.8908929,2363.5,2363.4,3.2963488]
[1725566301568,11.0703,2363.5,2363.0,4.146]
[1725566301864,0.42329,2362.8,2362.7,3.29]
[1725566302060,0.42329,2362.8,2362.4,0.42334]
[1725566302061,2.1710483,2362.9,2362.4,3.29]
[1725566302256,1.62814174,2362.6,2362.4,3.29]
[1725566302452,1.62814174,2362.6,2362.5,3.63114]
[1725566302651,3.59825174,2362.7,2362.5,3.2078]
[1725566303163,1.62814174,2362.6,2362.4,3.71335]
[1725566303362,3.17494174,2362.7,2362.4,3.71335]
[1725566304059,3.59825174,2362.7,2362.4,3.29]
[1725566304260,0.42336,2362.4,2362.3,0.0063488]
[1725566304460,0.42336,2362.4,2362.3,3.2141488]
[1725566304461,2.04957508,2362.4,2362.3,3.2141488]
[1725566304667,2.04957508,2362.4,2361.9,4.146]
[1725566304668,10.997,2362.4,2361.9,4.146]
[1725566304959,2.59141192,2362.0,2361.7,3.29]
[1725566305161,2.40048155,2361.9,2361.7,3.29]
[1725566305355,0.7746,2361.9,2361.7,3.29]
[1725566305859,0.7746,2361.9,2361.7,3.71348]
[1725566306060,0.7746,2361.9,2361.7,4.39]
[1725566306964,0.7746,2361.9,2361.7,4.81348]
[1725566307162,1.62588155,2362.3,2362.0,0.42342]
[1725566307377,0.7912,2362.5,2362.1,4.39]
[1725566307757,0.8243,2362.4,2362.1,4.81341]
[1725566308157,0.8243,2362.4,2362.1,4.39]
[1725566309164,0.8243,2362.4,2362.1,4.8134]
[1725566309868,1.24766,2362.4,2362.1,4.39]
[1725566310167,1.24766,2362.4,2362.0,3.63122]
[1725566310467,0.8243,2362.4,2362.1,0.4234]
[1725566310858,0.8243,2362.4,2362.0,3.63122]
[1725566311064,1.24766,2362.4,2362.0,3.2078]
[1725566311266,0.8243,2362.4,2362.0,3.63122]
[1725566311462,1.24766,2362.4,2362.0,3.63122]
[1725566311768,1.24766,2362.4,2362.0,3.2078]
[1725566311769,0.8243,2362.4,2362.0,3.2078]
[1725566311969,0.42341,2362.2,2362.0,3.2078]
[1725566312165,0.8243,2362.4,2361.8,4.39]
[1725566312366,0.42342,2362.1,2361.8,4.39]
[1725566312671,0.8243,2362.4,2361.8,4.81346]
[1725566312672,0.4234,2362.2,2361.8,4.81346]
[1725566312858,0.42339,2362.3,2361.9,0.42344]
[1725566313055,0.4234,2362.2,2361.8,4.81345]
[1725566313255,0.8243,2362.4,2361.8,4.39]
[1725566313456,0.8243,2362.4,2361.9,0.42343]
[1725566313668,0.8243,2362.4,2361.8,4.39]
[1725566313867,0.8243,2362.4,2362.1,4.8134]
[1725566314264,1.24766,2362.4,2362.1,4.39]
[1725566314883,1.24766,2362.4,2362.1,4.81341]
[1725566315363,1.24766,2362.4,2362.1,4.39]
[1725566315570,0.42338,2362.3,2362.1,4.39]
[1725566316566,1.24767,2362.4,2362.1,4.81341]
[1725566317471,0.8243,2362.4,2362.2,0.42339]
[1725566317670,0.8243,2362.4,2362.1,4.8134]
[1725566317864,0.8243,2362.4,2362.0,3.2078]
[1725566318165,0.4234,2362.2,2362.0,3.2078]
[1725566318564,0.4234,2362.2,2361.9,0.42344]
[1725566319460,0.42339,2362.3,2362.0,0.42343]
[1725566320373,0.42339,2362.3,2362.0,3.63123]
[1725566320677,0.8243,2362.4,2362.0,3.2078]
[1725566320969,0.8243,2362.4,2362.2,0.42339]
[1725566321374,0.8243,2362.4,2362.1,4.39]
[1725566321671,0.8243,2362.4,2362.3,0.42337]
[1725566321872,0.8243,2362.4,2362.2,0.42338]
[1725566322871,0.4296788,2362.6,2362.3,0.42336]
[1725566323170,0.4296788,2362.6,2362.4,4.39]
[1725566323171,0.0063488,2362.6,2362.4,4.39]
[1725566323370,0.4296788,2362.6,2362.4,4.39]
[1725566323577,0.4296788,2362.6,2362.3,3.63117]
[1725566323772,0.42334,2362.5,2362.3,3.2078]
[1725566323965,0.0063488,2362.6,2362.3,3.2078]
[1725566324275,0.42335,2362.5,2362.3,3.2078]
[1725566325270,0.42336,2362.4,2362.3,3.2078]
[1725566325472,0.42336,2362.4,2361.8,4.39]
[1725566325473,4.2328,2362.4,2361.8,4.39]
[1725566325666,1.05835,2362.5,2361.8,4.39]
[1725566325667,0.42344,2362.0,2361.8,4.39]
[1725566326066,0.42342,2362.1,2361.8,4.81346]
[1725566326274,0.42342,2362.1,2362.0,3.2078]
[1725566326578,0.42342,2362.1,2361.8,4.39]
[1725566326773,0.42342,2362.1,2361.8,4.81346]
[1725566327068,0.42343,2362.0,2361.8,4.39]
[1725566327468,0.42342,2362.1,2361.8,4.81346]
[1725566327667,1.2265,2362.2,2362.0,3.2078]
[1725566327971,0.8031,2362.2,2362.0,6.4978]
[1725566328167,1.2265,2362.2,2362.0,6.4978]
[1725566328676,0.8031,2362.2,2362.0,6.92122]
[1725566329273,0.42336,2362.4,2362.1,0.4234]
[1725566329577,0.42336,2362.4,2362.2,3.29]
[1725566329976,0.8412,2362.5,2362.2,3.29]
[1725566330372,0.8412,2362.5,2362.1,0.8014]
[1725566330373,0.8412,2362.5,2362.4,3.29]
[1725566331082,1.26454,2362.5,2362.4,3.29]
[1725566331275,0.42336,2362.4,2362.3,6.4978]
[1725566331975,0.42336,2362.4,2362.3,3.29]
[1725566333478,0.42339,2362.3,2362.1,3.29]
[1725566333668,0.42339,2362.2,2362.1,3.29]
[1725566333875,0.42342,2362.1,2361.9,3.71345]
[1725566334173,0.8225,2362.2,2361.9,3.71345]
[1725566334174,1.24591,2362.2,2362.0,0.42343]
[1725566334376,1.24591,2362.2,2362.0,3.63123]
[1725566335282,0.8225,2362.2,2362.1,3.71341]
[1725566335579,0.42336,2362.4,2362.2,0.42338]
[1725566335778,0.42336,2362.4,2362.3,3.29]
[1725566337077,0.42336,2362.4,2361.7,11.4621]
[1725566337078,0.42344,2362.0,2361.7,11.4621]
[1725566337277,0.7896,2361.9,2361.7,7.73958]
[1725566337585,1.21305,2361.9,2361.7,7.3161]
[1725566338079,1.21305,2361.9,2361.7,3.29]
[1725566338286,0.42346,2361.8,2361.7,3.29]
[1725566338479,0.42348,2361.7,2361.6,0.0063488]
[1725566338680,1.25078,2361.7,2361.6,0.0063488]
[1725566340182,8.69298,2361.7,2361.6,0.0063488]
[1725566340382,7.22968192,2361.7,2361.5,3.29]
[1725566340588,0.7896,2361.9,2361.5,3.29]
[1725566340589,2.41521159,2361.9,2361.5,3.71352]
[1725566340881,0.7896,2361.9,2361.5,3.71351]
[1725566341076,0.7896,2361.9,2361.5,3.29]
[1725566341277,0.7896,2361.9,2361.7,6.4978]
[1725566341590,0.7896,2361.9,2361.7,3.2078]
[1725566341777,0.7896,2361.9,2361.6,0.4298488]
[1725566341983,0.7896,2361.9,2361.7,3.2078]
[1725566342282,0.7896,2361.9,2361.7,6.4978]
[1725566342586,2.41521159,2361.9,2361.7,6.4978]
[1725566343187,2.41521159,2361.9,2361.0,3.63141]
[1725566343188,6.94437741,2361.8,2361.0,3.63141]
[1725566343387,1.62750025,2361.6,2361.0,0.8011]
[1725566343595,2.41710025,2361.9,2361.5,3.2078]
[1725566343884,2.41710025,2361.9,2361.7,3.29]
[1725566343885,0.7896,2361.9,2361.7,3.29]
[1725566344186,2.41710025,2361.9,2361.8,3.2078]
[1725566344388,0.7896,2361.9,2361.8,3.2078]
[1725566345086,0.7896,2361.9,2361.7,3.29]
[1725566345292,2.17000033,2361.8,2361.6,0.0063488]
[1725566345490,1.62968093,2361.7,2361.6,0.0063488]
[1725566345789,1.62968093,2361.7,2361.6,0.4298488]
[1725566345981,0.42348,2361.7,2361.6,0.0063488]
[1725566346184,4.2344,2361.7,2361.6,0.0063488]
[1725566346384,5.0404,2361.7,2361.6,3.2141488]
[1725566346583,0.806,2361.7,2361.6,0.0063488]
[1725566346891,2.98042494,2361.7,2361.6,0.0063488]
[1725566347089,2.17442494,2361.7,2361.6,3.2141488]
[1725566347286,2.17442494,2361.7,2361.6,3.6376488]
[1725566347287,1.63076945,2361.7,2361.6,3.6376488]
[1725566347483,2.17442494,2361.8,2361.6,3.2141488]
[1725566347687,1.63237459,2361.7,2361.6,3.6376288]
[1725566348388,2.17442494,2361.7,2361.6,3.6376288]
[1725566348585,2.17442494,2361.8,2361.6,3.2141488]
[1725566348883,2.17442494,2361.8,2361.6,0.0063488]
[1725566348884,2.71250042,2361.7,2361.6,0.0063488]
[1725566349193,2.72049707,2361.7,2361.6,3.2141488]
[1725566349396,2.72049707,2361.7,2361.6,0.0063488]
[1725566349586,3.57369707,2361.7,2361.6,0.0063488]
[1725566349989,3.57369707,2361.7,2361.6,13.4485488]
[1725566349990,2.17638538,2361.7,2361.6,13.4485488]
[1725566350183,1.63242707,2361.9,2361.8,0.42346]
[1725566350385,0.0339,2362.1,2362.0,0.42343]
[1725566350686,0.0063488,2362.6,2362.0,0.42343]
[1725566350687,2.18273418,2362.6,2362.2,1.05849]
[1725566350885,1.63939848,2362.6,2362.5,3.63114]
[1725566351095,1.63939848,2362.6,2362.5,6.92114]
[1725566351096,0.0063488,2362.6,2362.5,6.92114]
[1725566351288,4.41459707,2363.2,2362.5,6.92114]
[1725566351289,2.17638538,2363.1,2363.0,0.42325]
[1725566351591,1.63278505,2363.5,2363.1,4.232]